bitfinex/quotes_ETHUSD_20240530
["timestamp","ask_amount","ask_price","bid_price","bid_amount"]
[1717104278475,0.04583555,3743.3,3742.8,0.504707]
[1717104278631,2.67143,3743.4,3742.8,0.504707]
[1717104279569,2.67116,3743.7,3742.8,0.504707]
[1717104279971,0.04266108,3743.6,3742.8,0.504707]
[1717104280824,0.04266108,3743.6,3742.9,2.4003]
[1717104281030,0.04266108,3743.6,3743.0,0.5576727]
[1717104282070,2.67171,3743.0,3742.2,7.58996204]
[1717104282579,0.04247754,3742.9,3742.2,7.58996204]
[1717104284604,2.67183,3742.8,3742.2,7.58996204]
[1717104284977,0.04223612,3742.7,3742.2,7.58996204]
[1717104285378,2.67183,3742.8,3742.2,7.58996204]
[1717104285706,0.04223612,3742.7,3742.2,7.58996204]
[1717104286005,2.67183,3742.8,3742.2,7.58996204]
[1717104286505,0.04223612,3742.7,3742.2,7.58996204]
[1717104286711,2.67183,3742.8,3742.2,7.58996204]
[1717104286868,2.67183,3742.8,3742.2,7.3]
[1717104286869,0.04223612,3742.7,3742.2,7.3]
[1717104287070,2.67183,3742.8,3742.2,7.3]
[1717104287298,0.04223612,3742.7,3742.2,7.3]
[1717104287499,2.67183,3742.8,3742.2,7.3]
[1717104287685,2.67183,3742.8,3742.1,12.21]
[1717104287686,0.04223612,3742.7,3742.0,2.4003]
[1717104287886,2.67183,3742.8,3742.0,2.4003]
[1717104288201,0.04223612,3742.7,3742.0,2.4003]
[1717104288571,2.67183,3742.8,3742.0,2.4003]
[1717104288909,0.04223612,3742.7,3742.0,2.4003]
[1717104289087,2.67183,3742.8,3742.0,2.4003]
[1717104289291,0.04223612,3742.7,3742.0,2.4003]
[1717104289490,2.67183,3742.8,3742.0,2.4003]
[1717104289679,2.67183,3742.8,3742.0,3.63757]
[1717104296042,2.67183,3742.8,3742.0,2.4003]
[1717104296560,0.04083083,3742.7,3742.0,2.4003]
[1717104296925,2.67183,3742.8,3742.0,2.4003]
[1717104299234,0.04083083,3742.7,3742.0,2.4003]
[1717104299441,2.67183,3742.8,3742.0,2.4003]
[1717104299635,0.04083083,3742.7,3742.0,2.4003]
[1717104299862,2.67183,3742.8,3742.0,2.4003]
[1717104300061,0.04083083,3742.7,3742.0,2.4003]
[1717104300360,2.67183,3742.8,3742.0,2.4003]
[1717104300763,0.59083083,3742.7,3741.9,2.6724]
[1717104301068,0.59083083,3742.7,3741.9,3.66964]
[1717104301287,2.67183,3742.8,3741.9,4.99177922]
[1717104302410,2.9944,3742.7,3741.9,3.66964]
[1717104311455,2.9944,3742.7,3741.9,2.6724]
[1717104320801,0.55,3742.7,3741.9,2.6724]
[1717104321026,2.914,3742.7,3741.9,2.6724]
[1717104321242,2.914,3742.7,3742.1,2.67223]
[1717104321438,2.364,3743.0,3742.3,2.67214]
[1717104321735,0.03956685,3742.9,3742.6,2.67191]
[1717104321937,5.03534,3743.5,3742.6,6.32804922]
[1717104322241,2.67031,3744.9,3742.8,2.67173]
[1717104322242,2.4131,3743.8,3742.8,2.67173]
[1717104322446,2.4131,3743.8,3742.8,3.99386922]
[1717104322736,2.4131,3743.8,3742.9,0.63278692]
[1717104324242,0.55,3743.7,3742.9,0.63278692]
[1717104324615,0.03974627,3743.6,3742.9,0.63278692]
[1717104326118,0.55,3743.7,3742.9,0.63278692]
[1717104330950,0.55,3743.7,3742.9,0.68621472]
[1717104331254,0.55,3743.7,3743.0,0.46800839]
[1717104333246,2.67107,3743.9,3743.1,2.41702776]
[1717104333435,2.67107,3743.9,3743.2,2.6715]
[1717104333866,3.39645687,3744.8,3743.4,2.67134]
[1717104333867,2.6708,3744.2,3743.4,2.67134]
[1717104334074,2.6708,3744.2,3743.4,6.45587922]
[1717104336930,2.67058,3744.5,3743.6,2.67116]
[1717104337130,0.55,3744.4,3743.6,2.67116]
[1717104337336,0.04039069,3744.3,3743.7,0.64556992]
[1717104337735,0.55,3744.4,3743.7,0.64556992]
[1717104341142,2.67058,3744.5,3743.7,1.96770914]
[1717104341370,2.67058,3744.5,3743.9,2.4927]
[1717104343968,2.67026,3745.0,3744.0,1.32213922]
[1717104344150,2.67026,3745.0,3744.1,0.64858792]
[1717104344482,0.04088303,3744.9,3744.1,1.97072714]
[1717104346659,0.04088303,3744.9,3744.1,4.64158714]
[1717104348194,0.04088303,3744.9,3744.2,2.4376]
[1717104348575,2.67026,3745.0,3744.2,2.4376]
[1717104348887,2.67026,3745.0,3744.3,0.70791871]
[1717104351189,2.67026,3745.0,3744.3,2.03005793]
[1717104354230,2.67026,3745.0,3744.3,4.70071793]
[1717104354986,2.67026,3745.0,3744.4,2.4133]
[1717104357409,2.67026,3745.0,3744.3,4.70071793]
[1717104357624,2.67001,3745.3,3744.4,3.01246059]
[1717104357817,0.55,3745.2,3744.4,3.01246059]
[1717104357988,0.59091887,3745.2,3744.4,3.01246059]
[1717104362346,0.55,3745.2,3744.4,3.01246059]
[1717104375878,0.55,3745.2,3744.5,2.72398586]
[1717104376279,0.55,3745.2,3744.5,3.42984443]
[1717104379128,0.55,3745.2,3744.5,3.37643857]
[1717104379535,0.04113357,3745.1,3744.5,3.37643857]
[1717104380314,2.67001,3745.3,3744.6,2.4948]
[1717104380725,0.04117912,3745.2,3744.6,2.4948]
[1717104380885,0.04117912,3745.2,3744.7,0.58712386]
[1717104382029,2.67001,3745.3,3744.7,0.58712386]
[1717104382520,0.04117912,3745.2,3744.7,0.58712386]
[1717104382726,0.04117912,3745.2,3744.7,1.90926308]
[1717104383031,2.67001,3745.3,3744.7,1.90926308]
[1717104383181,2.67001,3745.3,3744.9,2.4088]
[1717104383514,0.04117912,3745.2,3744.9,2.4088]
[1717104383921,2.67001,3745.3,3744.9,2.4088]
[1717104384169,2.66982,3745.6,3744.9,2.4088]
[1717104384376,1.93951576,3745.5,3744.9,2.4088]
[1717104384577,0.04131187,3745.4,3745.0,0.71087835]
[1717104385075,2.66982,3745.6,3745.0,0.71087835]
[1717104385250,0.04126633,3745.3,3745.0,0.71087835]
[1717104385782,0.04122078,3745.2,3745.0,0.71087835]
[1717104386102,2.66982,3745.6,3745.0,0.71087835]
[1717104386245,0.04117523,3745.1,3745.0,0.71087835]
[1717104386438,1.93950695,3745.5,3745.0,0.71087835]
[1717104386645,0.04117523,3745.1,3745.0,0.71087835]
[1717104386955,2.66982,3745.6,3745.0,0.71087835]
[1717104387152,1.97938036,3745.5,3745.0,0.71087835]
[1717104387359,1.93950697,3745.4,3745.0,0.71087835]
[1717104387767,0.03978231,3745.3,3745.0,0.71087835]
[1717104387941,0.03978231,3745.3,3745.1,0.31196784]
[1717104388359,2.66982,3745.6,3745.1,0.31196784]
[1717104388583,1.97938124,3745.5,3745.0,0.71087835]
[1717104388770,1.93950785,3745.4,3745.0,0.71087835]
[1717104388971,0.03978231,3745.3,3745.0,0.71087835]
[1717104389884,2.66982,3745.6,3745.0,0.71087835]
[1717104390083,0.03973676,3745.2,3745.0,0.71087835]
[1717104390389,2.66982,3745.6,3745.1,0.31196784]
[1717104390591,1.93950574,3745.5,3745.0,0.71087835]
[1717104396270,1.93950574,3745.5,3744.9,2.4088]
[1717104396797,1.93950574,3745.5,3745.0,2.4619]
[1717104397094,2.66961,3745.9,3745.0,2.4619]
[1717104397299,1.9391941,3745.8,3745.2,2.4619]
[1717104397595,2.66961,3745.9,3745.3,0.25152971]
[1717104397756,0.03991253,3745.7,3745.3,0.25152971]
[1717104398089,2.66961,3745.9,3745.3,0.25152971]
[1717104398495,0.04003288,3745.8,3745.3,0.25152971]
[1717104403571,0.04003288,3745.8,3745.4,0.27134297]
[1717104403895,2.66961,3745.9,3745.4,0.27134297]
[1717104405959,2.66961,3745.9,3745.4,0.26954375]
[1717104407009,2.66938,3746.2,3745.4,2.93947375]
[1717104407159,2.66938,3746.2,3745.5,2.3116]
[1717104407360,0.04013639,3746.1,3745.5,2.3116]
[1717104407561,0.04013639,3746.1,3745.5,2.83670737]
[1717104407785,2.66938,3746.2,3745.5,2.83670737]
[1717104409713,2.66915,3746.6,3745.6,2.66977]
[1717104409879,2.66915,3746.6,3745.6,6.29480922]
[1717104410289,2.66915,3746.6,3745.7,2.3029]
[1717104410617,2.66915,3746.6,3745.9,2.3029]
[1717104410781,0.04031848,3746.5,3745.9,2.3029]
[1717104416104,2.66925,3746.4,3745.9,2.3029]
[1717104416471,0.0391638,3746.3,3745.9,2.3029]
[1717104418073,2.66925,3746.4,3745.9,2.3029]
[1717104418617,0.03899432,3746.3,3746.1,2.4234]
[1717104418788,2.66925,3746.4,3746.1,2.4234]
[1717104421609,0.03911063,3746.3,3746.1,2.4234]
[1717104423738,2.66925,3746.4,3746.1,2.4234]
[1717104423900,2.66925,3746.4,3746.1,2.89600201]
[1717104424097,0.03851063,3746.3,3746.1,2.89600201]
[1717104424636,2.66925,3746.4,3746.1,2.89600201]
[1717104424946,0.03851063,3746.3,3746.1,2.89600201]
[1717104425434,2.66925,3746.4,3746.1,2.89600201]
[1717104425640,0.03851063,3746.3,3746.1,2.89600201]
[1717104425843,2.66925,3746.4,3746.1,2.89600201]
[1717104426045,2.71903,3746.7,3746.3,2.3807]
[1717104427739,2.71903,3746.7,3745.8,2.66964]
[1717104427740,2.71903,3746.7,3745.9,2.2927]
[1717104427940,2.71903,3746.7,3746.0,1.32213922]
[1717104428141,0.05,3746.7,3745.9,2.2927]
[1717104428299,0.41596906,3746.7,3745.6,2.2927]
[1717104428495,0.03890946,3746.6,3745.7,2.54839422]
[1717104428831,0.41596906,3746.7,3745.7,2.54839422]
[1717104429170,2.66936,3746.3,3745.7,2.54839422]
[1717104431567,2.66936,3746.3,3745.7,1.226255]
[1717104431730,2.66936,3746.3,3745.6,2.2927]
[1717104432076,0.03870246,3746.2,3745.6,3.61483922]
[1717104432427,2.66936,3746.3,3745.6,3.61483922]
[1717104435474,0.03870246,3746.2,3745.6,3.61483922]
[1717104435968,2.66936,3746.3,3745.6,3.61483922]
[1717104437427,2.66952,3746.0,3745.6,3.61483922]
[1717104437728,2.66952,3746.0,3745.6,4.70632314]
[1717104438065,0.05,3746.7,3745.2,12.21]
[1717104438066,2.4393,3746.2,3745.2,12.21]
[1717104438297,2.66999,3745.4,3745.1,7.3]
[1717104438493,2.66999,3745.4,3744.6,17.17319]
[1717104438781,2.66999,3745.4,3744.7,1.32213922]
[1717104438985,2.66999,3745.4,3744.8,2.64560763]
[1717104439196,2.66999,3745.4,3744.9,1.32213922]
[1717104439973,2.66999,3745.4,3745.0,2.2927]
[1717104441480,2.67037,3744.8,3744.5,7.3]
[1717104441778,2.67051,3744.6,3744.5,7.3]
[1717104441965,2.67051,3744.6,3743.8,7.3]
[1717104442169,2.67051,3744.6,3743.8,8.62213922]
[1717104443280,2.9729,3745.3,3743.8,7.3]
[1717104443281,2.4229,3744.2,3743.8,7.3]
[1717104444872,2.67098,3744.0,3743.8,7.3]
[1717104445417,0.03727177,3743.9,3743.8,7.3]
[1717104448904,0.03727177,3743.9,3743.1,42.3]
[1717104449129,0.03727177,3743.9,3743.3,2.4737]
[1717104449431,2.67098,3744.0,3743.4,1.32213922]
[1717104449923,2.67098,3744.0,3743.5,35.0]
[1717104450615,2.67098,3744.0,3743.4,1.32213922]
[1717104450818,2.67098,3744.0,3743.4,2.60847755]
[1717104451328,2.67098,3744.0,3743.4,37.60847755]
[1717104452350,2.67098,3744.0,3743.4,2.60847755]
[1717104466079,2.67114,3743.8,3743.4,2.60847755]
[1717104469100,0.03692045,3743.7,3743.4,2.60847755]
[1717104469473,2.67114,3743.8,3743.4,2.60847755]
[1717104470099,0.03692045,3743.7,3743.4,2.60847755]
[1717104470461,2.67114,3743.8,3743.4,2.60847755]
[1717104470664,0.03692045,3743.7,3743.4,2.60847755]
[1717104470863,2.67114,3743.8,3743.4,2.60847755]
[1717104471063,0.03692045,3743.7,3743.4,2.60847755]
[1717104471278,2.67114,3743.8,3743.4,2.60847755]
[1717104471817,0.03692045,3743.7,3743.4,2.60847755]
[1717104472110,2.67114,3743.8,3743.4,2.60847755]
[1717104472480,0.03692045,3743.7,3743.4,2.60847755]
[1717104473114,2.67114,3743.8,3743.4,2.60847755]
[1717104473556,0.03692045,3743.7,3743.4,2.60847755]
[1717104473956,2.67114,3743.8,3743.4,2.60847755]
[1717104474222,2.67114,3743.8,3743.4,1.32213922]
[1717104474376,0.03692045,3743.7,3743.4,1.32213922]
[1717104474776,2.67114,3743.8,3743.4,1.32213922]
[1717104475163,0.03692045,3743.7,3743.4,1.32213922]
[1717104475391,2.67122,3743.6,3743.4,1.32213922]
[1717104483390,2.67122,3743.6,3743.4,2.18435314]
[1717104485433,2.67122,3743.6,3743.4,1.32213922]
[1717104490310,0.03677719,3743.5,3743.4,1.32213922]
[1717104490531,2.67122,3743.6,3743.4,1.32213922]
[1717104490741,0.03673538,3743.5,3743.4,1.32213922]
[1717104491054,2.67122,3743.6,3743.4,1.32213922]
[1717104491212,0.03676241,3743.5,3743.4,1.32213922]
[1717104491413,2.67122,3743.6,3743.4,1.32213922]
[1717104500066,2.671,3744.0,3743.4,2.40951314]
[1717104500275,2.671,3744.0,3743.5,2.4341]
[1717104500467,2.671,3744.0,3743.6,1.32213922]
[1717104504456,2.671,3744.0,3743.1,9.97157]
[1717104504457,2.67112,3743.8,3743.1,9.97157]
[1717104504684,2.67112,3743.8,3743.2,1.32213922]
[1717104507265,2.67112,3743.8,3743.2,2.69049014]
[1717104507660,2.67127,3743.6,3743.2,2.69049014]
[1717104508294,2.67127,3743.6,3743.2,1.36835092]
[1717104508460,2.3267,3743.5,3743.1,7.3]
[1717104508660,2.3267,3743.5,3743.1,8.62213922]
[1717104510299,2.67127,3743.6,3743.1,8.62213922]
[1717104513505,2.67127,3743.6,3743.1,1.32213922]
[1717104514404,2.4917,3744.3,3743.3,2.4129]
[1717104514591,2.67079,3744.2,3743.4,4.42041033]
[1717104514803,2.67079,3744.2,3743.5,2.4129]
[1717104514980,2.67079,3744.2,3743.5,3.73503922]
[1717104517420,2.67058,3744.5,3743.6,2.67121]
[1717104522821,3.03572906,3745.7,3743.3,7.3]
[1717104522822,2.3947,3745.4,3744.1,2.3562]
[1717104523031,2.66916,3746.5,3744.4,2.3562]
[1717104523032,5.06444,3745.7,3744.4,2.3562]
[1717104523344,5.06444,3745.7,3744.6,2.3562]
[1717104523345,0.03521842,3745.3,3744.6,2.3562]
[1717104523501,0.03521842,3745.3,3744.6,4.04617314]
[1717104523700,5.06444,3745.7,3744.7,1.32213922]
[1717104524190,5.06444,3745.7,3744.7,36.32213922]
[1717104524390,5.06444,3745.7,3744.8,2.67035]
[1717104524598,5.06444,3745.7,3744.8,3.99248922]
[1717104524926,5.06444,3745.7,3744.9,3.96774685]
[1717104525090,2.66974,3745.7,3744.9,1.32213922]
[1717104525432,0.03539689,3745.6,3744.9,1.32213922]
[1717104525736,0.03539689,3745.6,3745.0,2.67021]
[1717104525938,2.3246,3746.0,3745.0,3.99234922]
[1717104526301,2.3246,3746.0,3745.1,2.2994]
[1717104526888,2.66948,3746.1,3745.1,2.2994]
[1717104527087,0.55,3746.0,3745.1,2.2994]
[1717104528811,2.66948,3746.1,3745.2,1.32213922]
[1717104529835,2.66948,3746.1,3745.3,2.67001]
[1717104529994,2.66948,3746.1,3745.4,0.62915492]
[1717104531649,2.66919,3746.5,3745.5,1.32213922]
[1717104531803,2.66919,3746.5,3745.7,2.2994]
[1717104532006,2.66919,3746.5,3745.8,1.32213922]
[1717104532433,0.03605683,3746.4,3745.8,1.32213922]
[1717104532619,0.03605683,3746.4,3745.8,1.95127014]
[1717104537053,0.03605683,3746.4,3745.9,2.66958]
[1717104537297,4.99352,3746.9,3746.0,1.32213922]
[1717104539481,4.99352,3746.9,3746.2,2.3168]
[1717104539482,2.66892,3746.9,3746.2,2.3168]
[1717104539806,0.03678436,3746.6,3746.2,3.63893922]
[1717104540108,0.03678436,3746.6,3746.3,0.63083592]
[1717104540659,2.66892,3746.9,3746.3,0.63083592]
[1717104542271,2.66861,3747.3,3746.5,2.66915]
[1717104542471,2.66861,3747.3,3746.6,1.32213922]
[1717104542785,0.08709669,3746.7,3746.6,1.78435173]
[1717104543400,0.08709669,3746.7,3746.6,4.12815173]
[1717104543602,0.05,3746.7,3746.6,4.12815173]
[1717104555350,2.2742,3747.6,3747.0,999.9292534]
[1717104567582,2.66836,3747.7,3747.0,999.9292534]
[1717104567784,2.66836,3747.7,3747.1,2.20976661]
[1717104575710,0.57689267,3747.6,3747.1,2.20976661]
[1717104576069,2.66836,3747.7,3747.1,2.20976661]
[1717104578289,0.5768894,3747.6,3747.1,2.20976661]
[1717104578619,2.352,3747.8,3747.7,996.7547506]
[1717104580004,5.02023,3747.8,3747.7,996.7547506]
[1717104589791,5.57023,3747.8,3747.7,996.7547506]
[1717104589990,6.14708909,3747.8,3747.7,996.7547506]
[1717104590925,5.57023,3747.8,3747.7,996.7547506]
[1717104591537,6.14708617,3747.8,3747.7,996.7547506]
[1717104594942,6.14708919,3747.8,3747.7,996.7547506]
[1717104596141,6.14708842,3747.8,3747.7,996.7547506]
[1717104601243,6.09708842,3747.8,3747.7,996.7547506]
[1717104601901,3.79508842,3747.8,3747.7,996.7547506]
[1717104604258,3.79511072,3747.8,3747.7,996.7547506]
[1717104606046,6.28661072,3747.8,3747.7,996.7547506]
[1717104611180,6.28664845,3747.8,3747.7,996.7547506]
[1717104611385,3.79514845,3747.8,3747.7,996.7547506]
[1717104612454,3.79514923,3747.8,3747.7,996.7547506]
[1717104618410,3.79514934,3747.8,3747.7,996.7547506]
[1717104620587,10.21321856,3747.8,3747.7,996.7547506]
[1717104621286,11.78224742,3747.8,3747.7,996.7547506]
[1717104625564,11.78229196,3747.8,3747.7,996.7547506]
[1717104626688,11.78229205,3747.8,3747.7,996.7547506]
[1717104630417,10.21326319,3747.8,3747.7,996.7547506]
[1717104632396,13.21326319,3747.8,3747.7,996.7547506]
[1717104635184,3.24519397,3747.8,3747.7,999.1004506]
[1717104635822,2.66823,3747.8,3747.7,999.1004506]
[1717104636023,2.66823,3747.8,3747.7,1001.74605823]
[1717104637429,3.21823,3747.8,3747.7,1001.74605823]
[1717104638127,3.21823,3747.8,3747.7,999.40035823]
[1717104640831,2.66802,3748.1,3747.7,999.40035823]
[1717104641033,0.55,3748.0,3747.7,999.40035823]
[1717104641195,0.55,3748.0,3747.9,2.3753]
[1717104641707,2.66802,3748.1,3747.9,2.3753]
[1717104656961,2.66781,3748.4,3747.9,2.3753]
[1717104657271,0.55,3748.3,3747.8,0.82412582]
[1717104658273,0.55,3748.3,3747.9,2.3938]
[1717104658578,0.55,3748.3,3748.0,0.46221251]
[1717104665337,2.6676,3748.7,3748.0,0.46221251]
[1717104665897,2.66739,3749.0,3748.2,2.4901]
[1717104675108,2.66757,3748.8,3748.2,2.3914]
[1717104675310,2.66757,3748.8,3748.3,0.68437517]
[1717104679610,2.66757,3748.8,3748.4,2.2837]
[1717104679817,0.03187217,3748.7,3748.4,2.2837]
[1717104681511,0.57670217,3749.0,3748.4,2.2837]
[1717104681707,0.03188872,3748.9,3748.5,0.29680752]
[1717104683110,0.03188872,3748.9,3748.6,2.4538]
[1717104687736,0.8198,3749.2,3748.8,2.4684]
[1717104687955,2.66616,3750.8,3748.5,0.29680752]
[1717104687956,0.57664069,3749.6,3749.2,2.4684]
[1717104688238,2.01627665,3752.2,3749.2,2.4684]
[1717104688239,0.57656224,3750.9,3750.0,2.66666]
[1717104688409,2.66592,3751.1,3750.1,0.05332239]
[1717104688827,2.66592,3751.1,3750.0,3.98879922]
[1717104689369,2.66562,3751.5,3750.2,5.13491]
[1717104689676,2.66562,3751.5,3750.3,1.32213922]
[1717104689882,2.66562,3751.5,3750.4,2.66637]
[1717104690011,2.66562,3751.5,3750.5,1.96783014]
[1717104690613,2.66562,3751.5,3750.6,2.4684]
[1717104690841,2.66562,3751.5,3750.7,1.32213922]
[1717104692231,2.66562,3751.5,3750.8,35.0]
[1717104692427,2.66562,3751.5,3750.9,1.32213922]
[1717104692632,2.66562,3751.5,3751.0,1.91047612]
[1717104693031,2.66562,3751.5,3750.9,1.32213922]
[1717104698057,2.66532,3751.9,3750.9,1.32213922]
[1717104698262,0.55,3751.8,3751.0,2.361]
[1717104698553,0.55,3751.8,3751.0,3.68313922]
[1717104698554,0.0256946,3751.7,3751.0,3.68313922]
[1717104698759,0.0256946,3751.7,3751.1,2.55625504]
[1717104698957,0.55,3751.8,3751.1,2.55625504]
[1717104699336,0.55,3751.8,3751.0,3.68313922]
[1717104699337,2.66532,3751.9,3751.2,1.32213922]
[1717104699658,0.02639544,3751.8,3751.3,0.05330611]
[1717104699963,0.1244286,3752.2,3751.4,1.32213922]
[1717104700726,0.0244286,3752.2,3751.4,1.32213922]
[1717104700924,0.5744286,3752.2,3751.4,1.32213922]
[1717104701153,0.02631287,3752.1,3751.4,1.32213922]
[1717104701835,0.0244286,3752.2,3751.4,1.32213922]
[1717104704284,0.0244286,3752.2,3751.5,2.3897]
[1717104704486,0.0244286,3752.2,3751.6,1.95989314]
[1717104707364,0.0244286,3752.2,3751.7,37.4046]
[1717104707696,0.0244286,3752.2,3751.8,3.98748922]
[1717104707987,0.0244286,3752.2,3752.0,2.66524]
[1717104708151,0.0244286,3752.2,3752.1,3.72673922]
[1717104711468,0.0244286,3752.2,3752.1,38.72673922]
[1717104711670,0.0244286,3752.2,3752.1,41.37234685]
[1717104720224,0.0244286,3752.2,3752.1,6.37234685]
[1717104720426,0.0244286,3752.2,3752.1,3.72673922]
[1717104720938,0.0244286,3752.2,3752.0,2.66524]
[1717104721240,0.0244286,3752.2,3751.7,2.66545]
[1717104721396,0.0244286,3752.2,3751.8,4.32213922]
[1717104721598,0.0244286,3752.2,3751.9,0.99875892]
[1717104721835,0.0244286,3752.2,3751.9,1.32213922]
[1717104728854,0.0244286,3752.2,3751.7,5.13085]
[1717104729148,0.0244286,3752.2,3751.7,3.98758922]
[1717104731236,0.0244286,3752.2,3751.7,1.32213922]
[1717104736016,0.0244286,3752.2,3751.8,2.3416]
[1717104736248,0.0244286,3752.2,3751.9,0.63291192]
[1717104740734,0.02644102,3752.1,3751.9,0.63291192]
[1717104747000,0.0244286,3752.2,3751.9,0.63291192]
[1717104748967,0.0244286,3752.2,3751.9,3.29816192]
[1717104750189,0.02622355,3752.1,3751.9,3.29816192]
[1717104750386,0.0244286,3752.2,3752.0,0.46203011]
[1717104750588,0.0244286,3752.2,3752.1,1.32213922]
[1717104751263,0.0244286,3752.2,3752.1,36.32213922]
[1717104753084,0.0244286,3752.2,3752.1,1.32213922]
[1717104755113,0.0244286,3752.2,3752.1,39.32213922]
[1717104755293,0.0244286,3752.2,3752.1,41.96774685]
[1717104755940,0.0244286,3752.2,3752.1,44.28594685]
[1717104756793,8.6e-06,3752.2,3752.1,44.28594685]
[1717104756993,8.6e-06,3752.2,3752.1,45.67481302]
[1717104757833,8.6e-06,3752.2,3752.1,46.2320038]
[1717104757995,8.6e-06,3752.2,3752.1,45.67481302]
[1717104760414,8.6e-06,3752.2,3752.1,45.96254953]
[1717104760737,8.6e-06,3752.2,3752.1,45.96253375]
[1717104760915,8.6e-06,3752.2,3752.1,48.64988912]
[1717104761099,2.66357,3754.4,3752.8,2.2984]
[1717104761304,2.66357,3754.4,3753.0,2.2984]
[1717104761540,0.02740866,3754.3,3753.1,1.32213922]
[1717104761704,2.66357,3754.4,3753.2,35.0]
[1717104762041,2.66357,3754.4,3753.5,2.66411]
[1717104762237,2.66357,3754.4,3753.6,1.65013944]
[1717104762742,2.66357,3754.4,3753.7,35.0]
[1717104762900,2.66357,3754.4,3753.7,36.32213922]
[1717104763100,2.66357,3754.4,3753.7,1.32213922]
[1717104763417,2.3679,3754.3,3753.7,1.32213922]
[1717104763747,0.02731,3754.2,3753.7,1.32213922]
[1717104764130,2.3679,3754.3,3753.7,1.32213922]
[1717104764434,0.02752594,3754.2,3753.7,1.32213922]
[1717104765051,2.3679,3754.1,3753.7,1.32213922]
[1717104766518,4.96707,3754.4,3753.7,1.32213922]
[1717104766843,4.96707,3754.4,3753.7,1.72076414]
[1717104771222,4.96707,3754.4,3753.7,1.32213922]
[1717104777189,0.02552781,3754.3,3753.7,1.32213922]
[1717104777581,4.96707,3754.4,3753.7,1.32213922]
[1717104778094,0.02552781,3754.3,3753.7,1.32213922]
[1717104778667,4.96707,3754.4,3753.7,1.32213922]
[1717104780803,0.02552781,3754.3,3753.7,1.32213922]
[1717104781103,4.96707,3754.4,3753.7,1.32213922]
[1717104781302,4.96707,3754.4,3753.7,1.72076414]
[1717104781473,2.66357,3754.4,3753.8,1.32213922]
[1717104781806,0.02514115,3754.3,3753.8,1.32213922]
[1717104783429,2.5110232,3754.5,3753.8,1.32213922]
[1717104783601,0.02520724,3754.4,3753.8,1.32213922]
[1717104783805,0.02520724,3754.4,3753.8,1.71354463]
[1717104784736,2.5110232,3754.5,3753.8,1.71354463]
[1717104785603,0.0815232,3754.5,3753.8,4.09024463]
[1717104788834,0.0815232,3754.5,3753.9,2.71715853]
[1717104789006,0.0815232,3754.5,3753.9,4.03929775]
[1717104789205,0.0815232,3754.5,3754.0,0.39862492]
[1717104790528,0.0815232,3754.5,3754.0,0.4518934]
[1717104790959,0.0815232,3754.5,3754.1,1.32213922]
[1717104791658,0.0815232,3754.5,3754.1,3.62663922]
[1717104794427,0.02454281,3754.4,3754.1,3.62663922]
[1717104794627,0.02454281,3754.4,3754.2,0.66891541]
[1717104794922,0.0815232,3754.5,3754.2,1.99105463]
[1717104795274,0.0815232,3754.5,3754.3,1.32213922]
[1717104796365,0.0815232,3754.5,3754.2,0.66891541]
[1717104796538,0.0815232,3754.5,3754.0,0.39862492]
[1717104796744,2.3174,3754.4,3754.0,0.39862492]
[1717104797090,0.02449747,3754.3,3754.0,0.39862492]
[1717104797379,2.3174,3754.4,3754.0,0.39862492]
[1717104798022,2.3174,3754.4,3753.5,2.66411]
[1717104798322,2.66362,3754.3,3753.5,3.98624922]
[1717104798632,3.21362,3754.3,3753.5,3.98624922]
[1717104799186,3.21362,3754.3,3753.5,1.32213922]
[1717104799388,3.21362,3754.3,3753.4,35.0]
[1717104799389,2.66386,3754.0,3753.3,10.3]
[1717104799583,0.55,3754.3,3753.3,7.3]
[1717104799584,2.66399,3753.8,3753.3,7.3]
[1717104799812,0.02436254,3753.7,3753.3,7.3]
[1717104800010,2.66399,3753.8,3753.3,7.3]
[1717104800208,3.162129,3753.8,3753.3,7.3]
[1717104800423,2.66411,3753.6,3753.3,7.3]
[1717104800647,0.02357652,3753.5,3752.7,44.96467]
[1717104800923,0.02357652,3753.5,3752.8,1.32213922]
[1717104801107,2.66411,3753.6,3752.8,1.32213922]
[1717104801712,2.66411,3753.6,3752.8,3.96774685]
[1717104802126,2.66411,3753.6,3752.8,1.32213922]
[1717104804605,2.66411,3753.6,3752.7,7.3]
[1717104804824,2.66432,3753.4,3752.7,8.62213922]
[1717104805412,2.8266,3753.3,3752.7,7.3]
[1717104806318,2.66443,3753.2,3752.7,7.3]
[1717104806628,3.213533,3753.2,3752.7,7.3]
[1717104806806,2.66464,3752.9,3752.7,7.3]
[1717104809733,2.66464,3752.9,3752.0,7.3]
[1717104809920,2.66486,3752.6,3752.0,7.3]
[1717104810811,2.66505,3752.3,3752.0,7.3]
[1717104811215,2.66505,3752.3,3752.0,8.03]
[1717104815151,2.66424,3753.5,3752.4,2.66493]
[1717104815350,2.66424,3753.5,3752.7,2.66473]
[1717104815550,2.66393,3753.9,3752.8,1.32213922]
[1717104815766,2.66393,3753.9,3752.9,3.06328692]
[1717104816070,2.66393,3753.9,3753.0,1.32213922]
[1717104817868,2.66393,3753.9,3753.1,2.66441]
[1717104818167,2.66393,3753.9,3753.2,1.32213922]
[1717104818374,2.66366,3754.3,3753.3,0.39865492]
[1717104818671,0.02417608,3754.2,3753.4,3.98636922]
[1717104820739,5.0,3753.9,3753.4,3.98636922]
[1717104821055,0.02429165,3753.8,3753.4,3.98636922]
[1717104821263,0.02429165,3753.8,3753.5,0.43850241]
[1717104821467,0.02429165,3753.8,3753.6,1.32213922]
[1717104822838,5.0,3754.0,3753.6,1.32213922]
[1717104823039,0.02428365,3753.7,3753.6,1.32213922]
[1717104823288,5.0,3754.0,3753.6,1.32213922]
[1717104823463,5.0,3754.0,3753.7,0.44248716]
[1717104823670,5.0,3754.0,3753.8,1.32213922]
[1717104828901,5.0,3754.2,3753.8,1.32213922]
[1717104829688,5.0,3754.3,3753.8,1.32213922]
[1717104830604,5.0,3754.3,3753.8,3.78783922]
[1717104830766,5.0,3754.3,3753.9,0.68943264]
[1717104830966,5.0,3754.3,3753.9,2.01157186]
[1717104831462,5.0,3754.3,3754.0,3.98594922]
[1717104831663,5.0,3754.6,3754.0,3.98594922]